bitfinex/quotes_BTCUSD_20251019
["timestamp","ask_amount","ask_price","bid_price","bid_amount"]
[1760894825987,0.25108575,109320.0,109310.0,0.00049431]
[1760894826211,4.5288794,109320.0,109310.0,0.00049431]
[1760894826427,4.55492056,109320.0,109310.0,0.00049431]
[1760894826643,4.56973705,109320.0,109310.0,0.00049431]
[1760894828139,4.54369589,109320.0,109310.0,0.00049431]
[1760894828368,4.11272046,109320.0,109310.0,0.00049431]
[1760894828570,4.11472046,109320.0,109310.0,0.00049431]
[1760894828777,0.64721516,109320.0,109310.0,0.00049431]
[1760894828950,0.76629516,109320.0,109310.0,0.00049431]
[1760894829256,1.07853818,109320.0,109310.0,0.00049431]
[1760894829859,1.07753818,109320.0,109310.0,0.00049431]
[1760894830482,1.07653818,109320.0,109310.0,0.00049431]
[1760894831175,4.07653818,109320.0,109310.0,0.00049431]
[1760894832713,0.76429516,109320.0,109310.0,0.00049431]
[1760894832888,1.19561818,109320.0,109310.0,0.00049431]
[1760894834480,4.19557818,109320.0,109310.0,0.00049431]
[1760894834682,4.19557818,109320.0,109290.0,0.00108021]
[1760894834683,0.18298261,109300.0,109290.0,0.00108021]
[1760894834889,4.59464887,109300.0,109290.0,0.00108021]
[1760894835162,4.14406258,109300.0,109290.0,0.00108021]
[1760894835363,3.77157554,109300.0,109290.0,0.00108021]
[1760894835601,4.63422158,109300.0,109290.0,1e-08]
[1760894835780,4.56885851,109300.0,109290.0,1e-08]
[1760894835980,4.56885851,109300.0,109270.0,0.0004]
[1760894835981,3.6505214,109280.0,109270.0,0.0004]
[1760894836190,3.7695614,109280.0,109270.0,0.0004]
[1760894836339,3.89801284,109280.0,109270.0,0.0004]
[1760894836747,4.26561481,109280.0,109270.0,0.0004]
[1760894836940,3.50635826,109280.0,109270.0,0.0004]
[1760894837157,4.23157425,109280.0,109270.0,0.0004]
[1760894838744,4.11253425,109280.0,109270.0,0.0004]
[1760894839357,0.21053387,109280.0,109270.0,0.0004]
[1760894839965,0.02751777,109280.0,109270.0,0.30649921]
[1760894840174,0.18301312,109290.0,109270.0,0.30243285]
[1760894840378,0.29668727,109290.0,109270.0,0.30243285]
[1760894840582,0.30493594,109290.0,109270.0,0.30243285]
[1760894840753,0.1830161,109280.0,109270.0,0.30243285]
[1760894841318,0.1830161,109280.0,109270.0,0.45033285]
[1760894841742,0.20144375,109280.0,109270.0,0.45102844]
[1760894845618,3.9607003,109280.0,109270.0,0.00109559]
[1760894845748,4.07072409,109280.0,109270.0,0.00109559]
[1760894846157,4.44690637,109280.0,109270.0,0.00109559]
[1760894847240,3.68764982,109280.0,109270.0,0.00109559]
[1760894847411,4.44690637,109280.0,109270.0,0.00109559]
[1760894848655,3.77252926,109280.0,109270.0,0.00109559]
[1760894848812,4.53178581,109280.0,109270.0,0.00109559]
[1760894849210,4.41286581,109280.0,109270.0,0.00109559]
[1760894849474,4.53178581,109280.0,109270.0,0.00109559]
[1760894850187,4.41286581,109280.0,109270.0,0.00109559]
[1760894850602,0.73634698,109280.0,109270.0,0.00109559]
[1760894851662,0.61742698,109280.0,109270.0,0.00109559]
[1760894856276,0.27742698,109280.0,109270.0,0.00109559]
[1760894861944,4.07072409,109280.0,109270.0,0.00109559]
[1760894862102,4.41072409,109280.0,109270.0,0.00109559]
[1760894862289,4.37668353,109280.0,109270.0,0.00109559]
[1760894862915,4.41072409,109280.0,109270.0,0.00109559]
[1760894863120,3.65146754,109280.0,109270.0,0.00109559]
[1760894863323,4.41072409,109280.0,109270.0,0.00109559]
[1760894863537,4.44690637,109280.0,109270.0,0.00109559]
[1760894864791,4.17837904,109280.0,109270.0,0.00109559]
[1760894866733,4.71597658,109280.0,109270.0,0.00109559]
[1760894867126,4.69662822,109280.0,109270.0,0.00109559]
[1760894867573,4.205899,109280.0,109270.0,0.00109559]
[1760894868212,0.61742698,109280.0,109270.0,0.00109559]
[1760894870031,0.18301312,109290.0,109270.0,0.18412844]
[1760894870228,0.1830161,109280.0,109270.0,0.18343285]
[1760894870601,0.20227937,109280.0,109270.0,0.18343285]
[1760894871030,0.20227937,109280.0,109270.0,0.1871945]
[1760894871234,0.20227937,109280.0,109270.0,0.18343285]
[1760894872287,0.20227937,109280.0,109270.0,0.1871945]
[1760894874325,0.1830161,109280.0,109270.0,0.1871945]
[1760894876436,0.1830161,109280.0,109270.0,0.18987578]
[1760894876567,0.1830161,109280.0,109270.0,0.18343285]
[1760894876770,0.1830161,109280.0,109270.0,0.19057137]
[1760894877408,0.1830161,109280.0,109270.0,0.18412844]
[1760894878907,0.61459897,109290.0,109270.0,0.18412844]
[1760894879116,0.61459897,109290.0,109280.0,0.11864]
[1760894879318,0.61459897,109290.0,109280.0,0.11898776]
[1760894880460,0.18301312,109290.0,109280.0,0.11898776]
[1760894880657,0.63386224,109290.0,109280.0,0.11898776]
[1760894880861,0.61459897,109290.0,109280.0,0.11898776]
[1760894884613,0.18301312,109290.0,109280.0,0.11898776]
[1760894884825,0.63386224,109290.0,109280.0,0.11898776]
[1760894885030,0.61459897,109290.0,109280.0,0.11898776]
[1760894885243,0.61459897,109290.0,109280.0,0.26688776]
[1760894886707,0.18301312,109290.0,109280.0,0.26688776]
[1760894886913,0.63386224,109290.0,109280.0,0.26688776]
[1760894887140,0.62692352,109300.0,109280.0,0.44990386]
[1760894887458,0.19533767,109300.0,109280.0,0.44990386]
[1760894888406,0.62692352,109300.0,109280.0,0.44990386]
[1760894888893,0.18299935,109290.0,109280.0,0.44990386]
[1760894892212,0.18299935,109290.0,109280.0,0.26688776]
[1760894892423,0.18299935,109290.0,109280.0,0.44990386]
[1760894892811,0.18299935,109290.0,109280.0,0.26688776]
[1760894892970,1.06543432,109290.0,109280.0,0.14824776]
[1760894893170,1.14058193,109290.0,109280.0,0.14824776]
[1760894893374,1.17249458,109290.0,109280.0,0.26672776]
[1760894893574,0.74090873,109290.0,109280.0,0.26672776]
[1760894893777,0.27741023,109290.0,109280.0,0.26672776]
[1760894893976,0.70899608,109290.0,109280.0,0.26672776]
[1760894894737,1.14058193,109290.0,109280.0,0.26672776]
[1760894894899,0.70899608,109290.0,109280.0,0.26672776]
[1760894895260,1.48058193,109290.0,109280.0,0.00034776]
[1760894895457,4.51249458,109290.0,109280.0,0.00034776]
[1760894896138,4.59902193,109290.0,109280.0,0.00034776]
[1760894896282,0.61741023,109290.0,109280.0,0.00034776]
[1760894896482,1.04899608,109290.0,109280.0,0.00034776]
[1760894896958,1.48058193,109290.0,109280.0,0.00034776]
[1760894897162,1.63093458,109290.0,109280.0,0.00034776]
[1760894897404,4.66711686,109290.0,109280.0,0.00034776]
[1760894899914,4.54867686,109290.0,109280.0,0.00034776]
[1760894900097,4.20361836,109290.0,109280.0,0.00034776]
[1760894900593,1.20361836,109290.0,109280.0,0.00034776]
[1760894900794,1.18412696,109290.0,109280.0,0.00034776]
[1760894902325,1.61571281,109290.0,109280.0,0.00034776]
[1760894902742,1.49727281,109290.0,109280.0,0.00034776]
[1760894902926,1.61567281,109290.0,109280.0,0.00034776]
[1760894904124,0.68950468,109290.0,109280.0,0.00034776]
[1760894904656,0.59791883,109290.0,109280.0,0.00034776]
[1760894904860,1.02950468,109290.0,109280.0,0.00034776]
[1760894909306,1.46109053,109290.0,109280.0,0.00034776]
[1760894911590,0.59791883,109290.0,109280.0,0.00034776]
[1760894911925,1.02950468,109290.0,109280.0,0.00034776]
[1760894913160,0.59791883,109290.0,109280.0,0.00034776]
[1760894913360,1.02950468,109290.0,109280.0,0.00034776]
[1760894915435,1.46109053,109290.0,109280.0,0.00034776]
[1760894915845,4.46109053,109290.0,109280.0,0.00034776]
[1760894916469,4.49300318,109290.0,109280.0,0.00034776]
[1760894917888,4.52918546,109290.0,109280.0,0.00034776]
[1760894919764,4.53285415,109290.0,109280.0,0.00034776]
[1760894925894,4.53285415,109290.0,109270.0,0.0004]
[1760894925895,3.03441617,109280.0,109270.0,0.0004]
[1760894926029,4.77387387,109280.0,109270.0,0.0004]
[1760894926571,4.77387387,109280.0,109270.0,0.00074781]
[1760894926767,3.91104032,109280.0,109270.0,0.00074781]
[1760894926936,4.34663391,109280.0,109270.0,0.00074781]
[1760894927385,3.91470991,109280.0,109270.0,0.00074781]
[1760894927625,3.91570991,109280.0,109270.0,0.00074781]
[1760894927827,3.91570991,109280.0,109260.0,0.0004]
[1760894927828,4.04511474,109270.0,109260.0,0.0004]
[1760894928027,4.18859879,109270.0,109260.0,0.0004]
[1760894928861,4.52859879,109270.0,109260.0,0.0004]
[1760894929489,4.5285705,109270.0,109260.0,0.0004]
[1760894929911,4.55989109,109270.0,109260.0,0.0004]
[1760894930318,4.55989109,109270.0,109260.0,1e-08]
[1760894930319,4.56416072,109270.0,109260.0,1e-08]
[1760894930525,4.59607337,109270.0,109260.0,1e-08]
[1760894931317,4.59807337,109270.0,109260.0,1e-08]
[1760894931702,4.60007337,109270.0,109260.0,1e-08]
[1760894932599,5.03199737,109270.0,109260.0,1e-08]
[1760894932879,5.04199736,109270.0,109260.0,1e-08]
[1760894933638,3.74622536,109270.0,109260.0,1e-08]
[1760894934783,3.84063178,109270.0,109260.0,1e-08]
[1760894935014,3.74622536,109270.0,109260.0,1e-08]
[1760894936402,3.77375333,109270.0,109260.0,1e-08]
[1760894937679,3.87028333,109270.0,109260.0,1e-08]
[1760894937883,3.77375333,109270.0,109260.0,1e-08]
[1760894938786,3.74243274,109270.0,109260.0,1e-08]
[1760894939024,3.83683916,109270.0,109260.0,1e-08]
[1760894939231,3.83678555,109270.0,109260.0,1e-08]
[1760894939551,3.74237913,109270.0,109260.0,1e-08]
[1760894940739,3.70046649,109270.0,109260.0,1e-08]
[1760894941043,3.81858649,109270.0,109260.0,1e-08]
[1760894943901,3.32428421,109270.0,109260.0,1e-08]
[1760894944365,3.44236421,109270.0,109260.0,1e-08]
[1760894944672,3.78036421,109270.0,109260.0,1e-08]
[1760894944929,3.35846649,109270.0,109260.0,1e-08]
[1760894945120,0.4803126,109270.0,109260.0,1e-08]
[1760894945327,0.80323398,109270.0,109260.0,1e-08]
[1760894945479,0.68115398,109270.0,109260.0,1e-08]
[1760894945650,0.3049717,109270.0,109260.0,1e-08]
[1760894945856,0.3059717,109270.0,109260.0,1e-08]
[1760894946100,0.64348482,109270.0,109260.0,1e-08]
[1760894946460,0.61495685,109270.0,109260.0,1e-08]
[1760894946767,0.18403285,109270.0,109260.0,1e-08]
[1760894947345,0.18303285,109270.0,109260.0,1e-08]
[1760894947487,0.20229612,109270.0,109260.0,1e-08]
[1760894947905,0.296707,109270.0,109260.0,1e-08]
[1760894948106,0.27744373,109270.0,109260.0,1e-08]
[1760894948332,0.65362601,109270.0,109260.0,1e-08]
[1760894948535,3.81846206,109270.0,109260.0,1e-08]
[1760894950075,3.81946206,109270.0,109260.0,1e-08]
[1760894950940,3.82046206,109270.0,109260.0,1e-08]
[1760894951141,0.11350453,109270.0,109260.0,1e-08]
[1760894951281,0.09641088,109270.0,109260.0,0.18304961]
[1760894951482,0.002,109270.0,109260.0,0.18304961]
[1760894951663,0.002,109270.0,109260.0,0.18465889]
[1760894951857,0.432924,109270.0,109260.0,1e-08]
[1760894952089,0.432924,109270.0,109260.0,0.18557413]
[1760894952293,0.61495685,109270.0,109260.0,1e-08]
[1760894952736,0.94236473,109270.0,109260.0,1e-08]
[1760894953169,4.43654701,109270.0,109260.0,1e-08]
[1760894953452,4.54806253,109270.0,109260.0,1e-08]
[1760894954304,4.53095789,109270.0,109260.0,1e-08]
[1760894954520,1.53095789,109270.0,109260.0,1e-08]
[1760894955488,1.55847816,109270.0,109260.0,1e-08]
[1760894955687,4.65288458,109270.0,109260.0,1e-08]
[1760894955912,4.6955896,109270.0,109260.0,1e-08]
[1760894956110,4.60118318,109270.0,109260.0,1e-08]
[1760894956998,4.60218318,109270.0,109260.0,1e-08]
[1760894957721,4.60318318,109270.0,109260.0,1e-08]
[1760894958330,4.60218318,109270.0,109260.0,1e-08]
[1760894958898,4.60318318,109270.0,109260.0,1e-08]
[1760894960044,4.60318318,109270.0,109260.0,1e-08]
[1760894963468,4.58606775,109270.0,109260.0,1e-08]
[1760894963996,4.56047816,109270.0,109260.0,1e-08]
[1760894965376,4.55847816,109270.0,109260.0,1e-08]
[1760894965833,4.56047816,109270.0,109260.0,1e-08]
[1760894968116,4.55947816,109270.0,109260.0,1e-08]
[1760894968542,4.55847816,109270.0,109260.0,1e-08]
[1760894968938,4.55947816,109270.0,109260.0,1e-08]
[1760894969293,4.55847816,109270.0,109260.0,1e-08]
[1760894974747,4.6632139,109270.0,109260.0,1e-08]
[1760894975384,4.6652139,109270.0,109260.0,1e-08]
[1760894984532,4.66680853,109270.0,109260.0,1e-08]
[1760894988646,4.70956646,109270.0,109260.0,1e-08]
[1760894988902,5.14198874,109270.0,109260.0,1e-08]
[1760894989781,5.14039411,109270.0,109260.0,1e-08]
[1760894993017,5.11480452,109270.0,109260.0,1e-08]
[1760894993198,5.11639922,109270.0,109260.0,1e-08]
[1760894993606,5.11480452,109270.0,109260.0,1e-08]
[1760894993807,5.11639918,109270.0,109260.0,1e-08]
[1760894997878,5.11480452,109270.0,109260.0,1e-08]
[1760895000520,5.14039411,109270.0,109260.0,1e-08]
[1760895001474,5.14198881,109270.0,109260.0,1e-08]
[1760895001677,5.11639922,109270.0,109260.0,1e-08]
[1760895002510,5.11639524,109270.0,109260.0,1e-08]
[1760895002950,5.11480054,109270.0,109260.0,1e-08]
[1760895004519,5.11639522,109270.0,109260.0,1e-08]
[1760895004947,5.21080164,109270.0,109260.0,1e-08]
[1760895005621,5.11639522,109270.0,109260.0,1e-08]
[1760895006919,3.81990532,109270.0,109260.0,1e-08]
[1760895007081,5.11639522,109270.0,109260.0,1e-08]
[1760895012254,5.1249802,109270.0,109260.0,1e-08]
[1760895014854,4.5748169,109270.0,109260.0,1e-08]
[1760895015063,4.68383192,109270.0,109260.0,1e-08]
[1760895015269,0.74072198,109270.0,109260.0,1e-08]
[1760895015498,1.2888906,109270.0,109260.0,1e-08]
[1760895015695,1.1712906,109270.0,109260.0,1e-08]
[1760895015900,1.5112906,109270.0,109260.0,1e-08]
[1760895016257,1.1712906,109270.0,109260.0,1e-08]
[1760895016458,1.14377033,109270.0,109260.0,1e-08]
[1760895016657,0.71160703,109270.0,109260.0,1e-08]
[1760895016872,1.05160703,109270.0,109260.0,1e-08]
[1760895017224,1.04960703,109270.0,109260.0,1e-08]
[1760895017428,0.27744373,109270.0,109260.0,1e-08]
[1760895017637,0.70960703,109270.0,109260.0,1e-08]
[1760895017765,1.04960703,109270.0,109260.0,1e-08]
[1760895018856,0.70960703,109270.0,109260.0,1e-08]
[1760895019413,0.70960703,109270.0,109260.0,0.18304961]
[1760895019636,0.61519615,109270.0,109260.0,1e-08]
[1760895025621,0.64271263,109270.0,109260.0,1e-08]
[1760895026264,0.21054933,109270.0,109260.0,1e-08]
[1760895026479,0.64271263,109270.0,109260.0,1e-08]
[1760895029536,0.21054933,109270.0,109260.0,1e-08]
[1760895029922,0.64271263,109270.0,109260.0,1e-08]
[1760895030702,0.45967978,109270.0,109260.0,1e-08]
[1760895031004,0.64271263,109270.0,109260.0,1e-08]
[1760895031365,0.21054933,109270.0,109260.0,1e-08]
[1760895031561,0.64271263,109270.0,109260.0,1e-08]
[1760895033243,0.64271263,109270.0,109260.0,0.00658601]
[1760895034792,0.64271263,109270.0,109260.0,0.15448601]
[1760895035193,0.21054933,109270.0,109260.0,0.15448601]
[1760895035418,0.02751648,109270.0,109260.0,0.15448601]
[1760895035689,0.45967978,109270.0,109260.0,0.33753561]
[1760895036039,0.02751648,109270.0,109260.0,0.33753561]
[1760895036456,0.45967978,109270.0,109260.0,0.33753561]
[1760895037673,0.62431261,109290.0,109270.0,0.18301925]
[1760895037911,0.71872349,109290.0,109280.0,0.1174]
[1760895038126,0.51176268,109290.0,109280.0,0.1174]
[1760895038283,0.69479299,109290.0,109280.0,0.1174]
[1760895038466,0.72230561,109290.0,109280.0,0.1174]
[1760895039080,0.73145557,109290.0,109280.0,0.1174]
[1760895042131,0.18303285,109270.0,109260.0,0.15448601]
[1760895042376,0.18303285,109270.0,109260.0,0.27188601]
[1760895042377,0.63445942,109270.0,109260.0,0.27188601]
[1760895042593,1.04735945,109270.0,109260.0,0.27184601]
[1760895042814,1.07518752,109270.0,109260.0,0.27184601]
[1760895043736,1.0767819,109270.0,109260.0,0.27184601]
[1760895043943,0.64430701,109270.0,109260.0,0.27153442]
[1760895046507,0.64271263,109270.0,109260.0,0.12363442]
[1760895047912,1.07487593,109270.0,109260.0,0.12363442]
[1760895050753,0.6439866,109270.0,109260.0,0.12363442]
[1760895052434,0.6439866,109270.0,109260.0,0.27153442]
[1760895054860,0.6439866,109270.0,109260.0,0.45458402]
[1760895055885,0.6439866,109270.0,109260.0,0.27153442]
[1760895057892,0.6439866,109270.0,109260.0,0.45458402]
[1760895058258,0.6439866,109270.0,109260.0,0.27153442]
[1760895059252,0.44182606,109270.0,109260.0,0.27153442]
[1760895059447,0.62485891,109270.0,109260.0,0.27153442]
[1760895060414,0.62485891,109270.0,109260.0,0.45458402]
[1760895065643,0.00998317,109270.0,109260.0,0.45458402]
[1760895066206,0.19301602,109270.0,109260.0,0.45458402]
[1760895068586,0.62485891,109270.0,109260.0,0.27153442]
[1760895068806,4.15111268,109270.0,109260.0,0.15417442]
[1760895069230,4.18675595,109270.0,109260.0,0.15417442]
[1760895069440,3.75491306,109270.0,109260.0,0.15417442]
[1760895069853,3.75491306,109270.0,109260.0,0.00627442]
[1760895070050,4.18516157,109270.0,109260.0,0.00627442]
[1760895070285,3.87051868,109270.0,109260.0,0.00627442]
[1760895070438,4.30236157,109270.0,109260.0,0.00627442]
[1760895070639,4.30290058,109270.0,109260.0,0.00627442]
[1760895071047,3.87105769,109270.0,109260.0,0.00627442]
[1760895072922,3.87265216,109270.0,109260.0,0.00627442]
[1760895076183,0.87265216,109270.0,109260.0,0.00627442]
[1760895076902,0.83642988,109270.0,109260.0,0.00627442]
[1760895077239,0.71767541,109270.0,109260.0,0.18932402]
[1760895077458,0.71767541,109270.0,109260.0,0.00627442]
[1760895077813,0.28583252,109270.0,109260.0,0.00627442]
[1760895078014,3.71767541,109270.0,109260.0,0.00627442]
[1760895079922,4.05767541,109270.0,109260.0,0.00627442]
[1760895081468,4.05926989,109270.0,109260.0,0.00627442]
[1760895083414,1.05926989,109270.0,109260.0,0.00627442]
[1760895084704,0.287427,109270.0,109260.0,0.00627442]
[1760895085308,0.71926989,109270.0,109260.0,0.00627442]
[1760895085897,0.287427,109270.0,109260.0,0.00627442]
[1760895086100,0.71926989,109270.0,109260.0,0.00627442]
[1760895087106,0.71926989,109270.0,109260.0,0.12339442]
[1760895087343,0.287427,109270.0,109260.0,0.12339442]
[1760895087550,0.71926989,109270.0,109260.0,0.12339442]
[1760895088122,1.49111278,109270.0,109260.0,0.00627442]
[1760895088322,4.52515914,109270.0,109260.0,0.00627442]
[1760895088440,4.09331625,109270.0,109260.0,0.00627442]
[1760895089815,4.05767541,109270.0,109260.0,0.00627442]
[1760895090921,4.6065983,109270.0,109260.0,0.00627442]
[1760895091128,4.64278058,109270.0,109260.0,0.00627442]
[1760895091559,4.21093769,109270.0,109260.0,0.00627442]
[1760895091698,4.17475541,109270.0,109260.0,0.00627442]
[1760895091898,0.62583252,109270.0,109260.0,0.00627442]
[1760895092315,0.71767541,109270.0,109260.0,0.00627442]
[1760895094238,0.71767541,109270.0,109260.0,0.12335442]
[1760895094439,0.43184289,109270.0,109260.0,0.12335442]
[1760895094643,0.61487574,109270.0,109260.0,0.12335442]
[1760895094862,0.6423931,109270.0,109260.0,0.13234442]
[1760895095681,0.9823931,109270.0,109260.0,0.01526442]
[1760895096331,0.9823931,109270.0,109260.0,0.16316442]
[1760895097113,0.9823931,109270.0,109260.0,0.01526442]
[1760895099868,0.21055021,109270.0,109260.0,0.01526442]
[1760895100083,0.6423931,109270.0,109260.0,0.19831402]
[1760895100242,0.6423931,109270.0,109260.0,0.01526442]
[1760895100446,0.21055021,109270.0,109260.0,0.01526442]
[1760895100639,0.02751736,109270.0,109260.0,0.19831402]
[1760895100820,0.18302397,109280.0,109260.0,0.19831402]
[1760895101021,0.66164467,109280.0,109270.0,0.117]
[1760895101218,0.6423814,109280.0,109270.0,0.117]
[1760895102032,0.21053851,109280.0,109270.0,0.117]
[1760895102234,0.19326065,109290.0,109270.0,0.30093479]
[1760895102235,0.00108038,109290.0,109270.0,0.30093479]
[1760895102369,0.61592608,109290.0,109270.0,0.30003285]
[1760895102572,0.64343822,109290.0,109270.0,0.30003285]
[1760895103051,0.1830161,109280.0,109260.0,0.13226442]
[1760895103276,0.1830161,109280.0,109260.0,0.01526442]
[1760895103277,0.18303285,109270.0,109260.0,0.01526442]
[1760895103488,0.61487574,109270.0,109260.0,0.13226442]
[1760895104020,0.18303285,109270.0,109260.0,0.13226442]
[1760895104221,0.61487574,109270.0,109260.0,0.13226442]
[1760895104826,0.61487574,109270.0,109260.0,0.31531402]
[1760895105031,0.61487574,109270.0,109260.0,0.13226442]
[1760895105306,0.61487574,109270.0,109260.0,0.19831402]
[1760895105522,0.61487574,109270.0,109260.0,0.31531402]
[1760895105934,0.0301868,109290.0,109280.0,0.1830161]
[1760895106140,0.23085588,109290.0,109280.0,0.11696]
[1760895106382,0.6434355,109290.0,109280.0,0.2999761]
[1760895106587,0.46043541,109290.0,109280.0,0.2999761]
[1760895107017,0.02859252,109290.0,109280.0,0.2999761]
[1760895107208,0.00108038,109290.0,109280.0,0.2999761]
[1760895109665,0.00108038,109290.0,109280.0,0.3009761]
[1760895110647,0.00108038,109290.0,109280.0,0.3019761]
[1760895111979,0.43263412,109290.0,109280.0,0.3019761]
[1760895112307,0.43263412,109290.0,109280.0,0.79256924]
[1760895112308,0.00108038,109290.0,109280.0,0.79256924]
[1760895112518,0.00108038,109290.0,109280.0,0.82006998]
[1760895112726,0.00108038,109290.0,109280.0,0.76384772]
[1760895112984,0.00108038,109290.0,109280.0,0.74645624]
[1760895113339,0.00108038,109290.0,109280.0,0.74545624]
[1760895113540,0.00108038,109290.0,109280.0,0.73734698]
[1760895114661,0.00108038,109290.0,109280.0,0.73434698]
[1760895114858,0.00108038,109290.0,109280.0,0.73634698]
[1760895115068,0.00108038,109290.0,109280.0,0.73534698]
[1760895115477,0.00108038,109290.0,109280.0,0.74629095]
[1760895115697,0.00108038,109290.0,109280.0,0.27942698]
[1760895115894,0.00108038,109290.0,109280.0,0.39634698]
[1760895117981,0.00108038,109290.0,109280.0,0.54424698]
[1760895118928,0.18407973,109290.0,109280.0,0.11892]
[1760895119431,0.18407973,109290.0,109280.0,0.11692]
[1760895119638,0.67434484,109290.0,109280.0,0.001]
[1760895119775,0.67434484,109290.0,109280.0,0.11888]
[1760895120130,0.67434484,109290.0,109280.0,0.11788]
[1760895120850,0.67434484,109290.0,109280.0,0.11688]
[1760895121620,0.18303285,109270.0,109260.0,0.01526442]
[1760895122029,0.18303285,109270.0,109260.0,0.13214442]
[1760895122637,0.67329796,109270.0,109260.0,0.13214442]
[1760895122846,0.67329796,109270.0,109260.0,0.13314442]
[1760895123043,0.18303285,109270.0,109260.0,0.13314442]
[1760895123486,0.20229612,109270.0,109260.0,0.13314442]
[1760895123770,0.22981242,109270.0,109260.0,0.13414442]
[1760895123978,0.21054915,109270.0,109260.0,0.13414442]
[1760895124696,0.21054915,109270.0,109260.0,0.01726442]
[1760895124697,0.70081426,109270.0,109260.0,0.01726442]
[1760895125722,0.70081426,109270.0,109260.0,0.01626442]
[1760895127361,0.70081426,109270.0,109260.0,0.01526442]
[1760895128384,0.21054915,109270.0,109260.0,0.01526442]
[1760895128589,0.70081426,109270.0,109260.0,0.01526442]
[1760895129532,0.21054915,109270.0,109260.0,0.01526442]
[1760895130303,0.70081426,109270.0,109260.0,0.01526442]
[1760895131365,0.70081426,109270.0,109260.0,0.16316442]
[1760895131568,0.21054915,109270.0,109260.0,0.16316442]
[1760895135723,0.0275163,109270.0,109260.0,0.34621402]
[1760895136484,1.1403348,109290.0,109260.0,0.34621402]
[1760895136485,0.18408738,109290.0,109270.0,0.18302634]
[1760895136686,0.02859169,109290.0,109280.0,0.2998561]
[1760895138028,0.02859169,109290.0,109280.0,0.4477561]
[1760895138157,0.00108038,109290.0,109280.0,0.54216698]
[1760895139804,0.00108038,109290.0,109280.0,0.54316698]
[1760895140682,0.00108038,109290.0,109280.0,0.54416698]
[1760895145195,0.00108038,109290.0,109280.0,0.39626698]
[1760895146923,0.00108038,109290.0,109280.0,0.73626698]
[1760895150481,1e-08,109290.0,109280.0,0.78244925]
[1760895150687,1e-08,109290.0,109280.0,0.79244924]
[1760895151066,1e-08,109290.0,109280.0,0.79144924]
[1760895151375,1e-08,109290.0,109280.0,0.79344924]
[1760895151593,1e-08,109290.0,109280.0,3.79244924]
[1760895151797,1e-08,109300.0,109290.0,0.86918162]
[1760895152145,1e-08,109300.0,109290.0,0.97359249]
[1760895153401,1e-08,109300.0,109290.0,0.97459249]
[1760895153893,1e-08,109300.0,109290.0,0.97559249]
[1760895156181,1e-08,109310.0,109300.0,0.22916488]
[1760895156434,1e-08,109310.0,109300.0,0.7903922]
[1760895157491,1e-08,109310.0,109300.0,0.7923922]
[1760895157874,1e-08,109310.0,109300.0,0.7933922]
[1760895158186,1e-08,109310.0,109300.0,0.7903922]
[1760895159575,1e-08,109310.0,109300.0,0.7943922]
[1760895160374,1e-08,109310.0,109300.0,3.7943922]
[1760895161246,1e-08,109310.0,109300.0,3.8908622]
[1760895161424,0.00269739,109390.0,109370.0,0.1828655]
[1760895161575,0.30478755,109390.0,109380.0,0.11664]
[1760895162143,0.18566699,109390.0,109380.0,0.11664]
[1760895162560,0.67598153,109390.0,109380.0,0.11664]
[1760895162892,0.68512313,109390.0,109380.0,0.11664]
[1760895163322,0.19485802,109390.0,109380.0,0.11664]
[1760895163758,0.68512313,109390.0,109380.0,0.11664]
[1760895164781,0.70213048,109390.0,109380.0,0.11664]
[1760895165393,0.71063251,109390.0,109380.0,0.11664]
[1760895168670,0.1828743,109370.0,109350.0,0.19199998]
[1760895168876,0.1828743,109370.0,109360.0,0.1166]
[1760895169080,0.1828743,109370.0,109360.0,0.29948222]
[1760895169539,0.18495885,109370.0,109360.0,0.29948222]
[1760895170247,0.00208455,109370.0,109360.0,0.29948222]
[1760895174394,0.01912611,109370.0,109360.0,0.29948222]
[1760895175442,0.02765133,109370.0,109360.0,0.29948222]
[1760895175558,0.39141922,109380.0,109360.0,0.29948222]
[1760895175788,0.574268,109380.0,109360.0,0.29948222]
[1760895176638,0.573768,109380.0,109360.0,0.29948222]
[1760895177015,0.573768,109380.0,109370.0,0.1828655]
[1760895177573,0.573768,109380.0,109360.0,0.29948222]
[1760895180140,0.18284878,109380.0,109370.0,0.1828655]
[1760895180343,0.63303116,109380.0,109370.0,0.1893151]
[1760895180582,0.61376789,109380.0,109370.0,0.1893151]
[1760895180918,0.61376789,109380.0,109370.0,0.0064496]
[1760895182594,0.61411519,109380.0,109370.0,0.0064496]
[1760895182818,0.61411519,109380.0,109360.0,0.29948222]
[1760895184650,0.61411519,109380.0,109370.0,0.1828655]
[1760895187481,0.43126641,109380.0,109370.0,0.1828655]
[1760895187717,0.45695958,109380.0,109370.0,0.1828655]
[1760895187890,0.63980836,109380.0,109370.0,0.1828655]
[1760895188493,0.63981218,109380.0,109370.0,0.18755597]
[1760895188702,0.20889307,109380.0,109370.0,0.18755597]
[1760895189110,0.63981218,109380.0,109370.0,0.18755597]
[1760895190136,0.02604429,109380.0,109370.0,0.42986685]
[1760895190377,0.02604429,109380.0,109370.0,0.42517638]
[1760895191498,0.00891551,109380.0,109370.0,0.42517638]
[1760895192736,0.0003473,109380.0,109370.0,0.42517638]
[1760895193978,0.61411519,109380.0,109370.0,0.4472455]
[1760895194217,0.62268726,109380.0,109370.0,0.4472455]
[1760895194449,0.0003473,109380.0,109370.0,0.4472455]
[1760895194655,0.0003473,109380.0,109370.0,0.45351992]
[1760895195415,0.18319608,109380.0,109370.0,0.27065442]
[1760895196056,0.63337846,109380.0,109370.0,0.27065442]
[1760895196270,0.61411519,109380.0,109370.0,0.27065442]
[1760895198262,0.18319608,109380.0,109370.0,0.45351992]
[1760895198480,0.63337846,109380.0,109370.0,0.45351992]
[1760895198690,0.61411519,109380.0,109370.0,0.45351992]
[1760895198916,0.18319608,109380.0,109370.0,0.45351992]
[1760895199134,0.20245935,109380.0,109370.0,0.45351992]
[1760895200964,0.63337846,109380.0,109370.0,0.45351992]
[1760895201165,0.61411519,109380.0,109370.0,0.45351992]
[1760895202389,0.61411519,109380.0,109370.0,0.46250992]
[1760895202598,0.18319608,109380.0,109370.0,0.46250992]
[1760895202811,0.20245935,109380.0,109370.0,0.46250992]
[1760895203042,0.18319608,109380.0,109370.0,0.46250992]
[1760895203256,1.40429757,109380.0,109370.0,0.01526442]
[1760895203458,4.57196944,109380.0,109370.0,0.01526442]
[1760895203660,4.56884623,109380.0,109370.0,0.01526442]
[1760895204272,4.56984623,109380.0,109370.0,0.01526442]
[1760895204474,4.57084623,109380.0,109370.0,0.01526442]
[1760895204988,4.57184623,109380.0,109370.0,0.01526442]
[1760895205331,4.55469631,109380.0,109370.0,0.01526442]
[1760895205683,4.55369631,109380.0,109370.0,0.01526442]
[1760895205887,4.55469631,109380.0,109370.0,0.01526442]
[1760895206250,4.54612152,109380.0,109370.0,0.01526442]